fUSD/lending_fUSD_20260423
["ID","MTS","AMOUNT","RATE_DAILY","PERIOD"]
[420997818,1776886232682,-150.0,8.458e-05,2]
[420997819,1776886232692,-150.0,8.458e-05,2]
[420997820,1776886232702,-150.0,8.458e-05,2]
[420997821,1776886232711,-150.0,8.458e-05,2]
[420997822,1776886232720,-150.0,8.458e-05,2]
[420997823,1776886232730,-150.0,8.458e-05,2]
[420997824,1776886232739,-150.0,8.458e-05,2]
[420997825,1776886232748,-150.0,8.458e-05,2]
[420997826,1776886232758,-150.0,8.458e-05,2]
[420997827,1776886232768,-150.0,8.458e-05,2]
[420997828,1776886232777,-250.0,8.461e-05,2]
[420997829,1776886232787,-5000.0,8.465e-05,2]
[420997830,1776886232796,-19.89133452,8.472e-05,2]
[420997835,1776886237883,-173.10866548,8.472e-05,2]
[420997836,1776886237893,-1976.43359293,8.486e-05,2]
[420997837,1776886237937,-95.64202027,8.486e-05,2]
[420997838,1776886237948,-300.0,8.487e-05,2]
[420997839,1776886237959,-179.03775452,8.5e-05,2]
[420997840,1776886237969,-300.0,8.515e-05,2]
[420997841,1776886237979,-150.0,8.516e-05,2]
[420997842,1776886237989,-150.0,8.525e-05,2]
[420997843,1776886238000,-150.0,8.536e-05,2]
[420997844,1776886238009,-150.0,8.543e-05,2]
[420997845,1776886238019,-150.0,8.562e-05,2]
[420997846,1776886238028,-150.0,8.575e-05,2]
[420997847,1776886238038,-150.0,8.592e-05,2]
[420997848,1776886238048,-150.0,8.592e-05,2]
[420997849,1776886238057,-150.0,8.614e-05,2]
[420997850,1776886238067,-1500.0,8.62e-05,2]
[420997851,1776886238077,-150.0,8.628e-05,2]
[420997852,1776886238086,-150.0,8.634e-05,2]
[420997853,1776886238096,-150.0,8.659e-05,2]
[420997854,1776886238106,-150.0,8.666e-05,2]
[420997855,1776886238116,-150.0,8.692e-05,2]
[420997856,1776886238125,-150.0,8.692e-05,2]
[420997857,1776886238135,-150.0,8.692e-05,2]
[420997858,1776886238144,-150.0,8.714e-05,2]
[420997859,1776886238154,-150.0,8.726e-05,2]
[420997861,1776886238163,-150.0,8.726e-05,2]
[420997863,1776886238172,-150.0,8.751e-05,2]
[420997864,1776886238181,-150.0,8.751e-05,2]
[420997865,1776886238191,-150.0,8.771e-05,2]
[420997866,1776886238200,-150.0,8.771e-05,2]
[420997867,1776886238210,-150.0,8.771e-05,2]
[420997868,1776886238219,-150.0,8.771e-05,2]
[420997869,1776886238228,-150.0,8.793e-05,2]
[420997870,1776886238237,-150.0,8.799e-05,2]
[420997871,1776886238247,-150.0,8.81e-05,2]
[420997872,1776886238256,-289.0,8.845e-05,2]
[420997873,1776886238266,-150.0,8.849e-05,2]
[420997875,1776886238275,-150.0,8.86e-05,2]
[420997876,1776886238284,-150.0,8.86e-05,2]
[420997877,1776886238293,-150.0,8.869e-05,2]
[420997878,1776886238302,-150.0,8.875e-05,2]
[420997879,1776886238312,-150.0,8.885e-05,2]
[420997880,1776886238322,-150.0,8.927e-05,2]
[420997881,1776886238331,-150.0,8.927e-05,2]
[420997882,1776886238340,-150.0,8.927e-05,2]
[420997883,1776886238350,-150.0,8.927e-05,2]
[420997884,1776886238359,-150.0,8.927e-05,2]
[420997885,1776886238369,-165.6,8.933e-05,2]
[420997886,1776886238378,-150.0,8.97e-05,2]
[420997887,1776886238388,-150.0,8.98e-05,2]
[420997888,1776886238397,-150.0,8.986e-05,2]
[420997889,1776886238406,-150.0,8.995e-05,2]
[420997890,1776886238415,-150.0,8.995e-05,2]
[420997891,1776886238424,-150.0,9.006e-05,2]
[420997892,1776886238434,-150.0,9.045e-05,2]
[420997894,1776886238443,-150.0,9.056e-05,2]
[420997896,1776886238452,-150.0,9.062e-05,2]
[420997898,1776886238461,-150.0,9.084e-05,2]
[420997900,1776886238471,-150.0,9.084e-05,2]
[420997902,1776886238480,-150.0,9.084e-05,2]
[420997904,1776886238489,-150.0,9.084e-05,2]
[420997905,1776886238498,-150.0,9.104e-05,2]
[420997907,1776886238508,-150.0,9.129e-05,2]
[420997909,1776886238516,-150.0,9.129e-05,2]
[420997911,1776886238526,-150.0,9.141e-05,2]
[420997913,1776886238536,-150.0,9.162e-05,2]
[420997914,1776886238545,-150.0,9.162e-05,2]
[420997915,1776886238555,-150.0,9.162e-05,2]
[420997916,1776886238564,-500.0,9.183e-05,2]
[420997917,1776886238574,-500.0,9.183e-05,2]
[420997918,1776886238584,-377.68539666,9.183e-05,2]
[420997919,1776886238593,-500.0,9.183e-05,2]
[420997920,1776886238602,-500.0,9.183e-05,2]
[420997921,1776886238611,-500.0,9.183e-05,2]
[420997922,1776886238620,-500.0,9.183e-05,2]
[420997923,1776886238630,-500.0,9.183e-05,2]
[420997924,1776886238640,-150.0,9.188e-05,2]
[420997925,1776886238649,-150.0,9.196e-05,2]
[420997926,1776886238659,-509870.85832899,9.207e-05,2]
[420997927,1776886238671,-2050.45774159,9.207e-05,2]
[420997928,1776886238687,-24231.38992942,9.207e-05,2]
[420997929,1776886238696,-7841.613992,9.217e-05,2]
[420997930,1776886238706,-1071.399287,9.217e-05,2]
[420997931,1776886238715,-3949.646314,9.217e-05,2]
[420997932,1776886238724,-1465.472683,9.217e-05,2]
[420997933,1776886238733,-232.174399,9.22e-05,2]
[420997934,1776886238743,-1280.618678,9.22e-05,2]
[420997935,1776886238752,-13819.353795,9.22e-05,2]
[420997936,1776886238761,-150.0,9.221e-05,2]
[420997937,1776886238771,-150.0,9.226e-05,2]
[420997938,1776886238780,-150.0,9.241e-05,2]
[420997939,1776886238790,-150.0,9.263e-05,2]
[420997940,1776886238799,-150.0,9.263e-05,2]
[420997941,1776886238809,-500.0,9.269e-05,2]
[420997942,1776886238819,-412.85185512,9.269e-05,2]
[420997943,1776886238828,-500.0,9.269e-05,2]
[420997944,1776886238838,-500.0,9.269e-05,2]
[420997945,1776886238848,-500.0,9.269e-05,2]
[420997946,1776886238857,-500.0,9.269e-05,2]
[420997947,1776886238867,-524.86065643,9.269e-05,2]
[420997948,1776886238876,-1500000.0,9.27e-05,2]
[420997949,1776886238886,-150.0,9.28e-05,2]
[420997950,1776886238896,-150.0,9.293e-05,2]
[420997951,1776886238905,-1680.0,9.302e-05,2]
[420997952,1776886238914,-300.0,9.303e-05,2]
[420997953,1776886238934,-5000.0,9.303e-05,2]
[420997954,1776886238947,-250.0,9.303e-05,2]
[420997955,1776886238957,-300.0,9.303e-05,2]
[420997956,1776886238968,-193.0,9.303e-05,2]
[420997957,1776886238980,-300.0,9.303e-05,2]
[420997958,1776886238990,-5000.0,9.303e-05,2]
[420997959,1776886238999,-250.0,9.303e-05,2]
[420997960,1776886239009,-2248.0629,9.305e-05,2]
[420997961,1776886239018,-1908.212,9.307e-05,2]
[420997962,1776886239028,-163.375,9.307e-05,2]
[420997963,1776886239037,-1500.0,9.308e-05,2]
[420997964,1776886239047,-33083.9584,9.308e-05,2]
[420997965,1776886239056,-150.0,9.312e-05,2]
[420997966,1776886239066,-212.974524,9.315e-05,2]
[420997967,1776886239076,-3716.364971,9.315e-05,2]
[420997968,1776886239086,-150.0,9.319e-05,2]
[420997969,1776886239095,-150.0,9.33e-05,2]
[420997970,1776886239104,-150.0,9.339e-05,2]
[420997971,1776886239114,-53837.0,9.37e-05,2]
[420997972,1776886239124,-6390.0,9.37e-05,2]
[420997973,1776886239134,-160.10927686,9.383e-05,2]
[420997974,1776886239143,-500.0,9.383e-05,2]
[420997975,1776886239153,-311.88887855,9.383e-05,2]
[420997976,1776886239163,-225.89548749,9.397e-05,2]
[420997977,1776886239174,-150.0,9.397e-05,2]
[420997978,1776886239184,-194.22188174,9.397e-05,2]
[420997979,1776886239194,-166.6255525,9.397e-05,2]
[420997980,1776886239204,-176.6837889,9.397e-05,2]
[420997981,1776886239213,-167.61615929,9.397e-05,2]
[420997982,1776886239222,-298.96442628,9.397e-05,2]
[420997983,1776886239232,-173.69027534,9.397e-05,2]
[420997985,1776886239811,-150.0,9.397e-05,2]
[420997986,1776886239823,-262.64773087,9.397e-05,2]
[420997987,1776886239832,-212.24017024,9.397e-05,2]
[420997988,1776886239842,-1903.418728,9.405e-05,2]
[420997989,1776886239851,-393616.9946095,9.405e-05,2]
[420997990,1776886239861,-15135.6880927,9.405e-05,2]
[420997991,1776886239870,-142191.1452805,9.405e-05,2]
[420997992,1776886239879,-352.153519,9.405e-05,2]
[420997993,1776886239889,-352.153519,9.405e-05,2]
[420997994,1776886239898,-352.153519,9.405e-05,2]
[420997995,1776886239908,-352.153519,9.405e-05,2]
[420997996,1776886239917,-352.153519,9.405e-05,2]
[420997997,1776886239926,-352.153519,9.405e-05,2]
[420997998,1776886239935,-352.153519,9.405e-05,2]
[420997999,1776886239945,-352.153519,9.405e-05,2]
[420998000,1776886239954,-151.0,9.406e-05,2]
[420998001,1776886239968,-150.0,9.407e-05,2]
[420998002,1776886239978,-151.0,9.408e-05,2]
[420998003,1776886239988,-151.0,9.408e-05,2]
[420998004,1776886239998,-151.0,9.408e-05,2]
[420998005,1776886240007,-151.0,9.408e-05,2]
[420998006,1776886240017,-330.246154,9.408e-05,2]
[420998007,1776886240027,-330.246154,9.408e-05,2]
[420998008,1776886240036,-330.246154,9.408e-05,2]
[420998009,1776886240046,-330.246154,9.408e-05,2]
[420998010,1776886240055,-153.78868188,9.409e-05,2]
[420998011,1776886240065,-151.0,9.409e-05,2]
[420998012,1776886240074,-151.0,9.409e-05,2]
[420998013,1776886240084,-151.0,9.409e-05,2]
[420998014,1776886240093,-151.0,9.409e-05,2]
[420998015,1776886240103,-151.0,9.409e-05,2]
[420998016,1776886240112,-151.0,9.409e-05,2]
[420998017,1776886240122,-330.246154,9.409e-05,2]
[420998018,1776886240131,-330.246154,9.409e-05,2]
[420998019,1776886240141,-330.246154,9.409e-05,2]
[420998020,1776886240150,-330.246154,9.409e-05,2]
[420998021,1776886240159,-500.0,9.409e-05,2]
[420998022,1776886240169,-158.0,9.443e-05,2]
[420998023,1776886240179,-490.0,9.462e-05,2]
[420998024,1776886240193,-161.0,9.5e-05,2]
[420998025,1776886240203,-91345.59430141,9.505e-05,2]
[420998026,1776886240212,-1918.0,9.6e-05,2]
[420998027,1776886240223,-446.3179637,9.619e-05,2]
[420998028,1776886240232,-255.0,9.626e-05,2]
[420998029,1776886240242,-165.6,9.67e-05,2]
[420998030,1776886240252,-1600.0,9.715e-05,2]
[420998031,1776886240262,-500.0,9.731e-05,2]
[420998032,1776886240271,-500.0,9.731e-05,2]
[420998033,1776886240280,-997.0,9.84e-05,5]
[420998034,1776886240290,-150.0,9.9e-05,2]
[420998035,1776886240299,-503.41322101,9.931e-05,2]
[420998036,1776886240308,-150.0,9.958e-05,2]
[420998037,1776886240318,-208.0,9.989e-05,2]
[420998038,1776886240328,-208.0,9.989e-05,2]
[420998039,1776886240338,-208.0,9.989e-05,2]
[420998040,1776886240347,-208.0,9.989e-05,2]
[420998041,1776886240356,-208.0,9.989e-05,2]
[420998042,1776886240366,-796.0,9.991e-05,5]
[420998043,1776886240375,-830.0,9.991e-05,5]
[420998044,1776886240384,-155.0,9.999e-05,2]
[420998045,1776886240394,-379.57173416,0.0001,2]
[420998046,1776886240404,-1462.86127375,0.0001,2]
[420998047,1776886240413,-1132.53226691,0.0001,2]
[420998048,1776886240425,-867.05541728,0.0001,2]
[420998049,1776886240435,-1354.5391004,0.0001,2]
[420998050,1776886240444,-2168.82570266,0.0001,2]
[420998051,1776886240454,-2361.27270741,0.0001,2]
[420998052,1776886240463,-2397.39072146,0.0001,2]
[420998053,1776886240472,-2625.95574035,0.0001,2]
[420998054,1776886240481,-963.71056503,0.0001,2]
[420998055,1776886240491,-317.10012072,0.0001,2]
[420998056,1776886240500,-317.10012072,0.0001,2]
[420998057,1776886240510,-317.10012072,0.0001,2]
[420998058,1776886240519,-233.37345322,0.0001,2]
[420998059,1776886240529,-401.39429812,0.0001,2]
[420998060,1776886240539,-371.50979628,0.0001,2]
[420998061,1776886240548,-416.68228324,0.0001,2]
[420998062,1776886240558,-380.52687238,0.0001,2]
[420998063,1776886240567,-151.0,0.0001,2]
[420998064,1776886240577,-500.0,0.0001,2]
[420998065,1776886240587,-151.0,0.0001,2]
[420998066,1776886240596,-201.60640572,0.0001,2]
[420998067,1776886240606,-500.0,0.0001,2]
[420998068,1776886240616,-151.0,0.0001,2]
[420998069,1776886240626,-500.0,0.0001,2]
[420998070,1776886240635,-151.0,0.0001,2]
[420998071,1776886240645,-500.0,0.0001,2]
[420998072,1776886240654,-151.0,0.0001,2]
[420998073,1776886240664,-500.0,0.0001,2]
[420998074,1776886240673,-151.0,0.0001,2]
[420998075,1776886240683,-500.0,0.0001,2]
[420998076,1776886240693,-151.0,0.0001,2]
[420998077,1776886240702,-500.0,0.0001,2]
[420998078,1776886240712,-500.0,0.0001,2]
[420998079,1776886240721,-151.0,0.0001,2]
[420998080,1776886240731,-500.0,0.0001,2]
[420998081,1776886240740,-151.0,0.0001,2]
[420998082,1776886240750,-151.0,0.0001,2]
[420998083,1776886240760,-151.0,0.0001,2]
[420998084,1776886240769,-500.0,0.0001,2]
[420998085,1776886240779,-838.55585586,0.0001002,2]
[420998086,1776886240789,-150.281,0.00010025,2]
[420998087,1776886240799,-1265.0,0.00010025,2]
[420998088,1776886240809,-1219.0,0.00010025,2]
[420998089,1776886240819,-927.0,0.00010025,2]
[420998090,1776886240828,-164.225,0.00010025,2]
[420998091,1776886240838,-3209.782,0.00010025,2]
[420998092,1776886240848,-1349.0,0.00010025,2]
[420998093,1776886240859,-2474.0,0.00010025,2]
[420998094,1776886240868,-151.0,0.00010025,2]
[420998095,1776886240878,-151.0,0.00010025,2]
[420998096,1776886240899,-151.0,0.00010025,2]
[420998097,1776886240909,-330.246154,0.00010025,2]
[420998098,1776886240919,-330.246154,0.00010025,2]
[420998099,1776886240929,-330.246154,0.00010025,2]
[420998100,1776886240939,-330.246154,0.00010025,2]
[420998101,1776886240948,-352.153519,0.00010025,2]
[420998102,1776886240958,-352.153519,0.00010025,2]
[420998103,1776886240968,-352.153519,0.00010025,2]
[420998104,1776886240978,-352.153519,0.00010025,2]
[420998105,1776886240988,-160.0,0.00010147,2]
[420998106,1776886240999,-1746.0,0.00010232,2]
[420998107,1776886241009,-165.6,0.00010407,2]
[420998108,1776886241020,-299.99,0.00010475,2]
[420998109,1776886241030,-24931.06,0.00010475,2]
[420998110,1776886241043,-9999.99,0.00010475,2]
[420998111,1776886241063,-150.99,0.00010475,2]
[420998112,1776886241077,-578.20924308,0.00010516,2]
[420998113,1776886241088,-500.0,0.00010516,2]
[420998114,1776886241098,-721.12765535,0.00010516,2]
[420998115,1776886241108,-209.40437684,0.00010516,2]
[420998116,1776886241124,-200.0,0.00010516,2]
[420998117,1776886241134,-1428.38747117,0.00010516,2]
[420998118,1776886241144,-743.50770149,0.00010516,2]
[420998119,1776886241154,-151.0,0.00010516,2]
[420998120,1776886241164,-174.61919141,0.00010516,2]
[420998121,1776886241174,-209.40437684,0.00010516,2]
[420998122,1776886241185,-500.0,0.00010571,2]
[420998123,1776886241195,-151.0,0.00010571,2]
[420998124,1776886241206,-433.0,0.00010589,2]
[420998125,1776886241216,-380.52687237,0.00010604,2]
[420998126,1776886241226,-151.0,0.00010623,2]
[420998127,1776886241236,-151.0,0.00010623,2]
[420998128,1776886241246,-151.0,0.00010623,2]
[420998129,1776886241256,-151.0,0.00010623,2]
[420998130,1776886241266,-330.246154,0.00010623,2]
[420998131,1776886241276,-330.246154,0.00010623,2]
[420998132,1776886241286,-330.246154,0.00010623,2]
[420998133,1776886241297,-330.246154,0.00010623,2]
[420998134,1776886241311,-352.153519,0.00010623,2]
[420998135,1776886241320,-352.153519,0.00010623,2]
[420998136,1776886241331,-352.153519,0.00010623,2]
[420998137,1776886241340,-352.153519,0.00010623,2]
[420998138,1776886241350,-87827.8230443,0.00010623,2]
[420998139,1776886241361,-31727.1330181,0.00010623,2]
[420998140,1776886241371,-500.0,0.00010626,2]
[420998141,1776886241381,-151.0,0.00010626,2]
[420998142,1776886241392,-524.52142767,0.00010648,2]
[420998143,1776886241402,-500.0,0.00010681,2]
[420998144,1776886241411,-151.0,0.00010681,2]
[420998145,1776886241422,-2210.25,0.00010705,2]
[420998146,1776886241432,-500.0,0.00010736,2]
[420998147,1776886241442,-151.0,0.00010736,2]
[420998148,1776886241452,-500.0,0.00010791,2]
[420998149,1776886241462,-151.0,0.00010791,2]
[420998150,1776886241471,-19597.0362213,0.00010895,2]
[420998151,1776886241482,-7079.2802713,0.00010895,2]
[420998152,1776886241493,-6186.77,0.000109,2]
[420998153,1776886241503,-3093.38,0.000109,2]
[420998154,1776886241513,-3093.39,0.000109,2]
[420998155,1776886241523,-1600.0,0.00010929,2]
[420998156,1776886241534,-571.43735099,0.00010959,2]
[420998157,1776886241544,-509.00832002,0.00010959,2]
[420998158,1776886241554,-3240.0,0.00010959,2]
[420998159,1776886241564,-151.0,0.00010959,2]
[420998160,1776886241574,-151.0,0.00010959,2]
[420998161,1776886241584,-162.914011,0.00010959,2]
[420998162,1776886241595,-151.0,0.00010959,2]
[420998163,1776886241605,-151.0,0.00010959,2]
[420998164,1776886241615,-151.0,0.00010959,2]
[420998165,1776886241626,-151.0,0.00010959,2]
[420998166,1776886241636,-151.0,0.00010959,2]
[420998167,1776886241646,-151.0,0.00010959,2]
[420998168,1776886241656,-151.0,0.00010959,2]
[420998169,1776886241666,-151.0,0.00010959,2]
[420998170,1776886241676,-151.0,0.00010959,2]
[420998171,1776886241686,-151.0,0.00010959,2]
[420998172,1776886241696,-151.0,0.00010959,2]
[420998173,1776886241705,-219.42079,0.00010959,2]
[420998174,1776886241715,-2992.0658182,0.00010964,2]
[420998175,1776886241726,-155.0,0.00010999,2]
[420998176,1776886241736,-6186.77,0.00011,2]
[420998177,1776886241746,-6186.77,0.00011,2]
[420998178,1776886241756,-6186.77,0.00011,2]
[420998179,1776886241766,-6186.77,0.00011,2]
[420998180,1776886241776,-3093.38,0.00011,2]
[420998181,1776886241786,-3093.38,0.00011,2]
[420998182,1776886241796,-3093.38,0.00011,2]
[420998183,1776886241806,-3093.38,0.00011,2]
[420998184,1776886241816,-3093.39,0.00011,2]
[420998185,1776886241826,-3093.39,0.00011,2]
[420998186,1776886241836,-3093.39,0.00011,2]
[420998187,1776886241846,-3093.39,0.00011,2]
[420998188,1776886241857,-500.0,0.00011006,2]
[420998189,1776886241867,-3377.2285081,0.00011047,2]
[420998190,1776886241877,-194.72792766,0.00011064,2]
[420998191,1776886241889,-200.0,0.00011064,2]
[420998192,1776886241899,-1481.23780761,0.00011064,2]
[420998193,1776886241909,-625.10110559,0.00011064,2]
[420998194,1776886241919,-181.08010149,0.00011064,2]
[420998195,1776886241928,-217.15233878,0.00011064,2]
[420998196,1776886241938,-174.102384,0.00011074,2]
[420998197,1776886241947,-7968.68841371,0.00011099,2]
[420998198,1776886241957,-7968.68841365,0.00011099,2]
[420998199,1776886241967,-7968.68841365,0.00011099,2]
[420998200,1776886241977,-7968.68841365,0.00011099,2]
[420998201,1776886241987,-7968.68841365,0.00011099,2]
[420998202,1776886241997,-7968.68841365,0.00011099,2]
[420998203,1776886242007,-7968.68841365,0.00011099,2]
[420998204,1776886242016,-352.153519,0.00011099,2]
[420998205,1776886242026,-352.153519,0.00011099,2]
[420998206,1776886242037,-352.153519,0.00011099,2]
[420998207,1776886242046,-352.153515,0.00011099,2]
[420998208,1776886242056,-7968.68841365,0.00011274,2]
[420998209,1776886242067,-753.5615378,0.00011414,2]
[420998210,1776886242076,-470.93,0.00011419,2]
[420998211,1776886242087,-471.63,0.00011419,2]
[420998212,1776886242097,-2992.06581818,0.00011432,2]
[420998213,1776886242108,-239.49,0.00011457,2]
[420998214,1776886242118,-1052.83,0.00011457,2]
[420998215,1776886242128,-442.3,0.00011457,2]
[420998216,1776886242138,-470.93,0.00011477,2]
[420998217,1776886242148,-470.93,0.00011506,2]
[420998218,1776886242158,-2973.37,0.00011507,2]
[420998219,1776886242168,-151.0,0.00011511,2]
[420998220,1776886242177,-151.0,0.00011514,2]
[420998221,1776886242187,-151.0,0.00011514,2]
[420998222,1776886242197,-151.0,0.00011514,2]
[420998223,1776886242208,-1390.30573936,0.0001152,2]
[420998224,1776886242217,-5000.0,0.00011525,2]
[420998225,1776886242227,-470.97653396,0.00011536,2]
[420998226,1776886242237,-7968.68841365,0.00011574,2]
[420998227,1776886242246,-200.0,0.00011612,2]
[420998228,1776886242256,-1536.04360649,0.00011612,2]
[420998229,1776886242266,-187.78006525,0.00011612,2]
[420998230,1776886242276,-225.18697532,0.00011612,2]
[420998231,1776886242285,-4003.41,0.00011626,2]
[420998232,1776886242295,-28022.72,0.00011626,2]
[420998233,1776886242305,-151.0,0.00011626,2]
[420998234,1776886242315,-151.0,0.00011626,2]
[420998235,1776886242325,-330.246154,0.00011626,2]
[420998236,1776886242335,-330.246154,0.00011626,2]
[420998237,1776886242344,-330.246154,0.00011626,2]
[420998238,1776886242354,-330.246158,0.00011626,2]
[420998239,1776886242365,-151.0,0.00011645,2]
[420998240,1776886242375,-152.97,0.00011658,2]
[420998241,1776886242385,-547.3,0.00011698,2]
[420998242,1776886242395,-431.22,0.00011698,2]
[420998243,1776886242405,-151.0,0.00011767,2]
[420998244,1776886242415,-151.0,0.00011767,2]
[420998245,1776886242425,-161.0,0.0001178,2]
[420998246,1776886242435,-2000.0,0.00011788,2]
[420998247,1776886242445,-200.0,0.00011788,2]
[420998248,1776886242455,-151.0,0.00011797,2]
[420998249,1776886242465,-150.0,0.00011873,2]
[420998251,1776886242478,-7968.68841365,0.00011873,2]
[420998253,1776886242488,-214.888183,0.00011874,2]
[420998255,1776886242497,-2000.0,0.0001188,2]
[420998257,1776886242507,-2000.0,0.0001188,2]
[420998259,1776886242517,-300.0,0.00011887,2]
[420998261,1776886242527,-2000.0,0.0001189,2]
[420998263,1776886242536,-380.52687237,0.000119,2]
[420998265,1776886242546,-2992.06581818,0.000119,2]
[420998267,1776886242556,-200.0,0.00011903,2]
[420998269,1776886242567,-2000.0,0.0001191,2]
[420998270,1776886242576,-250.0,0.00011912,2]
[420998272,1776886242586,-364.14,0.00011912,2]
[420998275,1776886242596,-666.0,0.00011972,2]
[420998278,1776886242606,-666.0,0.00011972,2]
[420998280,1776886242616,-3614.446902,0.00011973,2]
[420998282,1776886242625,-3614.446902,0.00011973,2]
[420998284,1776886242635,-3614.446902,0.00011973,2]
[420998285,1776886242645,-3614.446902,0.00011973,2]
[420998286,1776886242655,-3614.446902,0.00011973,2]
[420998287,1776886242664,-3614.446902,0.00011973,2]
[420998288,1776886242674,-3614.446902,0.00011973,2]
[420998289,1776886242683,-3614.446902,0.00011973,2]
[420998290,1776886242692,-3614.446902,0.00011973,2]
[420998291,1776886242702,-3614.446902,0.00011973,2]
[420998292,1776886242712,-3614.446902,0.00011973,2]
[420998293,1776886242721,-3614.446902,0.00011973,2]
[420998294,1776886242730,-3614.446902,0.00011973,2]
[420998295,1776886242740,-3614.446902,0.00011973,2]
[420998296,1776886242749,-3614.446902,0.00011973,2]
[420998297,1776886242759,-3614.446902,0.00011973,2]
[420998298,1776886242769,-3614.446902,0.00011973,2]
[420998299,1776886242779,-3614.446902,0.00011973,2]
[420998300,1776886242788,-3614.446902,0.00011973,2]
[420998301,1776886242798,-3614.446906,0.00011973,2]
[420998302,1776886242808,-151.0,0.00011973,2]
[420998303,1776886242818,-161.0,0.0001199,2]
[420998304,1776886242828,-155.0,0.00011999,2]
[420998305,1776886242838,-666.0,0.00011999,2]
[420998306,1776886242848,-666.0,0.00011999,2]
[420998307,1776886242857,-300.0,0.00011999,2]
[420998308,1776886242867,-666.0,0.00011999,2]
[420998309,1776886242877,-666.0,0.00011999,2]
[420998310,1776886242886,-241.427,0.00011999,2]
[420998311,1776886242896,-211448.25627607,0.00012,2]
[420998321,1776886245073,-4631.81178345,0.00012,2]
[420998322,1776886245332,-290915.64446601,0.00012,2]
[420998353,1776886246994,-230.69558853,9.206e-05,2]
[420998354,1776886247004,-500.0,9.206e-05,2]
[420998355,1776886247014,-180.68593825,9.206e-05,2]
[420998356,1776886247023,-500.0,9.206e-05,2]
[420998357,1776886247033,-366.98393747,9.206e-05,2]
[420998358,1776886247043,-623.0,0.00010025,2]
[420998359,1776886247052,-4097.50052979,0.00012,2]
[420998360,1776886247064,-3000.00000576,0.00012,2]
[420998361,1776886247097,-2392.81052465,0.00012,2]
[420998364,1776886486692,500.0,0.00016226,30]
[420998365,1776886486859,500.0,0.00016226,30]
[420998366,1776886487033,500.0,0.00016226,30]
[420998367,1776886487182,561.94856703,0.00016226,30]
[420998368,1776886522301,-22400.0,9.207e-05,2]
[420998369,1776886641717,-10000.0,9.108e-05,2]
[420998370,1776886641740,-500.0,9.206e-05,2]
[420998371,1776886641763,-456.88875623,9.206e-05,2]
[420998372,1776886641791,-224.98451738,9.206e-05,2]
[420998373,1776886641817,-161.48691197,9.206e-05,2]
[420998374,1776886641841,-488.99629859,9.206e-05,2]
[420998375,1776886641863,-500.0,9.206e-05,2]
[420998376,1776886641888,-34757.64351583,9.207e-05,2]
[420998379,1776886809961,500.0,0.00016226,30]
[420998380,1776886809999,500.0,0.00016226,30]
[420998381,1776886810167,500.0,0.00016226,30]
[420998382,1776886810323,500.0,0.00016226,30]
[420998383,1776886810357,500.0,0.00016226,30]
[420998384,1776886810434,427.0,0.00016226,30]
[420998385,1776886810522,165.04971273,0.00016226,30]
[420998386,1776886810623,427.0,0.00016226,30]
[420998387,1776886810782,427.0,0.00016226,30]
[420998388,1776886810943,427.0,0.00016226,30]
[420998389,1776886811059,539.13798207,0.00016226,30]
[420998396,1776886821201,427.0,0.00016226,30]
[420998397,1776886821414,427.0,0.00016226,30]
[420998398,1776886821569,427.0,0.00016226,30]
[420998399,1776886821741,427.0,0.00016226,30]
[420998400,1776886821903,427.0,0.00016226,30]
[420998401,1776886822101,427.0,0.00016226,30]
[420998402,1776886822307,427.0,0.00016226,30]